bitfinex-derivatives/quotes_SOLF0:USTF0_20251107
["timestamp","ask_amount","ask_price","bid_price","bid_amount"]
[1762550236920,0.04234831,163.59,163.57,8.39]
[1762550237417,0.04234831,163.59,163.58,2.15254217]
[1762550238117,0.04234831,163.59,163.58,5.15254217]
[1762550239818,0.04234831,163.59,163.58,3.0]
[1762550240019,0.04234831,163.59,163.58,5.15254217]
[1762550240817,0.04234831,163.59,163.58,3.0]
[1762550241118,0.04234831,163.59,163.58,5.15254217]
[1762550241515,0.04234831,163.59,163.58,3.0]
[1762550241922,0.04234831,163.59,163.58,2.15254217]
[1762550242221,0.04234831,163.59,163.57,5.39]
[1762550242222,2.14234831,163.59,163.57,5.39]
[1762550242420,2.1,163.58,163.57,5.39]
[1762550243321,7.64634831,163.59,163.57,5.39]
[1762550244618,2.1,163.58,163.57,5.39]
[1762550245018,2.1,163.58,163.55,0.04563737]
[1762550245019,2.1,163.56,163.55,0.04563737]
[1762550246624,3.32,163.56,163.55,0.04563737]
[1762550250923,2.1,163.56,163.55,0.04563737]
[1762550253114,3.32,163.56,163.55,0.04563737]
[1762550254018,2.09,163.53,163.48,6.64]
[1762550254219,2.09,163.52,163.48,6.64]
[1762550254621,2.09,163.52,163.49,2.91]
[1762550255126,4.24254217,163.55,163.49,2.91]
[1762550255526,2.13354723,163.54,163.5,0.04695329]
[1762550256226,0.04354723,163.54,163.5,2.95695329]
[1762550256623,2.13354723,163.54,163.5,2.95695329]
[1762550258127,7.63934723,163.54,163.5,2.95695329]
[1762550260027,0.04354723,163.54,163.5,2.95695329]
[1762550260330,0.04354723,163.54,163.52,2.91]
[1762550262725,0.04354723,163.54,163.53,5.00254217]
[1762550263530,5.5044,163.58,163.54,2.85]
[1762550263931,5.5044,163.58,163.56,2.85]
[1762550264133,5.16595359,163.58,163.56,2.85]
[1762550264931,0.0436193,163.59,163.56,2.85]
[1762550265235,0.0436193,163.59,163.55,2.19529173]
[1762550265236,0.0436193,163.59,163.58,2.85]
[1762550267734,5.5021,163.65,163.59,2.85]
[1762550267929,5.5021,163.65,163.62,2.85]
[1762550268526,2.09,163.64,163.6,5.00254217]
[1762550268741,2.09,163.64,163.61,2.85]
[1762550269228,2.09,163.64,163.6,2.19904979]
[1762550269441,2.09,163.64,163.6,5.04904979]
[1762550269629,5.5027,163.63,163.6,2.19904979]
[1762550269835,2.09,163.62,163.61,4.31]
[1762550271729,3.31,163.62,163.61,1.757e-05]
[1762550272540,7.5933,163.61,163.6,0.04650762]
[1762550272736,9.74584217,163.61,163.6,0.04650762]
[1762550275129,10.96584217,163.61,163.6,0.04650762]
[1762550275726,16.67419996,163.61,163.6,0.04650762]
[1762550276430,10.96584217,163.61,163.6,0.04650762]
[1762550279744,5.70835779,163.62,163.6,0.04650762]
[1762550279745,2.09,163.62,163.6,0.04650762]
[1762550280240,2.09,163.61,163.6,0.04650762]
[1762550280439,2.09,163.6,163.5,5.00254217]
[1762550280640,2.09,163.57,163.5,5.00254217]
[1762550280840,2.09,163.54,163.5,2.85]
[1762550281345,2.09,163.53,163.5,0.03993356]
[1762550281541,2.09,163.51,163.5,0.03993356]
[1762550285842,3.31,163.51,163.5,0.03993356]
[1762550286039,2.09,163.51,163.5,0.03993356]
[1762550288246,9.74894217,163.52,163.5,0.03993356]
[1762550288452,7.5964,163.52,163.5,0.03993356]
[1762550288641,2.09,163.51,163.5,0.03993356]
[1762550289841,5.5064,163.52,163.5,0.03993356]
[1762550290045,7.5964,163.52,163.5,0.03993356]
[1762550290744,2.09,163.51,163.5,0.03993356]
[1762550291349,7.5964,163.52,163.5,0.03993356]
[1762550292648,4.40421632,163.51,163.5,0.03993356]
[1762550292847,6.49421632,163.51,163.5,0.03993356]
[1762550294144,2.09,163.51,163.5,0.03993356]
[1762550294747,7.5964,163.52,163.5,0.03993356]
[1762550294955,2.09,163.51,163.5,0.03993356]
[1762550296250,5.5064,163.52,163.5,0.03993356]
[1762550296855,5.5064,163.52,163.5,2.99993356]
[1762550297257,2.09,163.51,163.5,0.03993356]
[1762550298252,6.49200091,163.51,163.5,0.03993356]
[1762550298645,2.09,163.5,163.44,6.47]
[1762550298849,2.09,163.49,163.44,6.47]
[1762550299552,5.5084,163.46,163.44,6.47]
[1762550299755,5.5084,163.46,163.45,0.04109054]
[1762550300254,7.5984,163.46,163.45,0.04109054]
[1762550302251,5.5084,163.46,163.45,0.04109054]
[1762550302847,0.04236678,163.48,163.45,3.00109054]
[1762550304056,5.5064,163.52,163.46,2.96]
[1762550305060,0.04489355,163.51,163.48,2.96]
[1762550305462,0.04489355,163.51,163.49,2.96]
[1762550310270,0.04489355,163.51,163.47,0.04301944]
[1762550310271,2.09,163.48,163.47,0.04301944]
[1762550310470,2.09,163.48,163.44,3.46763322]
[1762550310877,2.09,163.45,163.39,7.37]
[1762550311376,7.5998,163.42,163.4,0.0456815]
[1762550311876,2.09,163.41,163.4,0.0456815]
[1762550312464,2.09,163.49,163.42,3.07]
[1762550312873,2.09,163.48,163.44,3.36703597]
[1762550313473,2.12922626,163.48,163.44,3.40647114]
[1762550313673,0.03922626,163.48,163.45,3.07]
[1762550318484,4.40649783,163.53,163.47,3.07]
[1762550318685,4.40649783,163.52,163.47,3.07]
[1762550318982,2.09,163.54,163.47,3.07]
[1762550319181,4.40649615,163.53,163.47,3.07]
[1762550319383,4.40649615,163.52,163.48,0.0450578]
[1762550319583,2.09,163.5,163.48,0.0450578]
[1762550320585,5.5068,163.51,163.48,0.0450578]
[1762550320888,4.41058873,163.5,163.48,0.0450578]
[1762550321181,5.5068,163.51,163.48,0.0450578]
[1762550321386,4.41250814,163.5,163.48,0.0450578]
[1762550321586,5.5068,163.51,163.48,0.0450578]
[1762550321786,4.41250814,163.5,163.48,0.0450578]
[1762550321981,5.5068,163.51,163.48,0.0450578]
[1762550322181,4.41250814,163.5,163.48,0.0450578]
[1762550322478,6.50250814,163.49,163.48,0.0450578]
[1762550323075,4.41250814,163.49,163.48,2.9350578]
[1762550329177,5.6999688,163.54,163.48,2.9350578]
[1762550329382,4.5415966,163.53,163.48,2.9350578]
[1762550329578,4.5415966,163.52,163.48,2.9350578]
[1762550329779,5.6999688,163.55,163.48,2.9350578]
[1762550329991,4.54118125,163.54,163.49,2.89]
[1762550330293,4.54118125,163.53,163.49,2.89]
[1762550330487,7.7899688,163.56,163.49,2.89]
[1762550330688,4.54055536,163.55,163.49,2.89]
[1762550330987,4.54055536,163.54,163.49,2.89]
[1762550331179,4.54055536,163.53,163.49,2.89]
[1762550331385,5.5057,163.54,163.49,2.89]
[1762550331585,4.54021093,163.53,163.49,2.89]
[1762550331789,5.5057,163.54,163.49,2.89]
[1762550331987,4.54021006,163.53,163.49,2.89]
[1762550332193,5.5057,163.54,163.49,2.89]
[1762550332394,10.04588174,163.53,163.49,2.89]
[1762550332698,7.7899688,163.56,163.49,2.89]
[1762550332897,7.5957,163.54,163.49,2.89]
[1762550333201,4.5399413,163.53,163.49,2.89]
[1762550333391,5.6999688,163.58,163.49,2.93667012]
[1762550333599,4.53921819,163.57,163.49,2.89]
[1762550333901,5.6999688,163.58,163.53,2.89]
[1762550333902,5.5054,163.55,163.53,2.89]
[1762550334199,4.53921819,163.54,163.52,0.04309873]
[1762550334386,5.5048,163.57,163.52,2.93309873]
[1762550334588,4.53860077,163.56,163.52,2.93309873]
[1762550334782,5.6999688,163.6,163.52,2.93309873]
[1762550334987,5.5043,163.58,163.54,2.89]
[1762550335198,4.53820519,163.57,163.55,2.89]
[1762550335507,5.6999688,163.62,163.55,2.89]
[1762550335688,5.6999688,163.62,163.57,2.93170293]
[1762550335689,4.53736228,163.61,163.57,2.93170293]
[1762550335889,2.09,163.63,163.57,2.93170293]
[1762550336197,5.5038,163.6,163.57,2.93170293]
[1762550336396,2.09,163.62,163.58,3.36196825]
[1762550337394,7.5932,163.62,163.58,3.36196825]
[1762550338198,2.09,163.61,163.57,2.93170293]
[1762550338995,2.09,163.59,163.57,0.04170293]
[1762550339695,78.28,163.65,163.57,0.04170293]
[1762550339696,2.09,163.63,163.57,2.93170293]
[1762550342498,5.503,163.62,163.57,2.93170293]
[1762550342699,2.1,163.61,163.57,2.93170293]
[1762550343295,7.6023,163.64,163.57,2.93170293]
[1762550343493,2.1,163.64,163.57,2.93170293]
[1762550344101,7.6025,163.64,163.57,2.93170293]
[1762550344395,2.1,163.64,163.57,0.04170293]
[1762550344601,2.1,163.64,163.57,3.12170293]
[1762550344801,2.1,163.64,163.58,3.08]
[1762550345494,2.1,163.67,163.58,3.08]
[1762550345701,2.1,163.67,163.56,3.36196825]
[1762550345702,4.50416591,163.66,163.62,3.08]
[1762550346007,4.50416591,163.65,163.62,3.08]
[1762550346201,5.5007,163.69,163.62,3.08]
[1762550346397,5.5007,163.69,163.64,3.08]
[1762550346607,5.5007,163.69,163.65,3.12354182]
[1762550346999,7.6007,163.69,163.65,3.12354182]
[1762550347297,4.52685169,163.68,163.65,3.12354182]
[1762550347493,4.52685169,163.67,163.65,3.12354182]
[1762550347806,4.52685169,163.66,163.65,3.12354182]
[1762550348509,4.52685169,163.66,163.65,0.04354182]
[1762550348700,6.62685169,163.66,163.65,0.04354182]
[1762550349905,12.29586602,163.66,163.65,0.04354182]
[1762550350611,14.21945871,163.66,163.65,0.04354182]
[1762550351310,15.43945871,163.66,163.65,0.04354182]
[1762550351504,7.6019,163.65,163.63,2.58477503]
[1762550351804,2.1,163.63,163.61,4.39201406]
[1762550352010,12.3262432,163.62,163.61,4.39201406]
[1762550352209,12.3262432,163.62,163.61,1.406e-05]
[1762550352411,16.37290184,163.62,163.61,1.406e-05]
[1762550352711,16.38129025,163.62,163.61,1.406e-05]
[1762550352908,7.6033,163.61,163.6,0.0463143]
[1762550353110,12.13015169,163.61,163.6,0.0463143]
[1762550354114,17.82970625,163.61,163.6,0.0463143]
[1762550354613,12.13015169,163.61,163.6,0.0463143]
[1762550355321,10.03015169,163.61,163.6,0.0463143]
[1762550355616,4.52685169,163.61,163.6,0.0463143]
[1762550356317,4.52685169,163.61,163.6,3.1263143]
[1762550356608,7.79955456,163.68,163.61,3.08]
[1762550356915,4.44372144,163.67,163.61,3.08]
[1762550357213,4.44372144,163.66,163.61,3.08]
[1762550357406,5.69955456,163.7,163.61,3.08]
[1762550357606,4.44268558,163.69,163.64,0.04422652]
[1762550357803,6.54268558,163.68,163.64,3.12422652]
[1762550358007,2.1,163.66,163.64,0.04422652]
[1762550358207,6.54268558,163.65,163.64,0.04422652]
[1762550361115,4.44268558,163.65,163.64,0.04422652]
[1762550362110,4.44268558,163.65,163.64,3.12422652]
[1762550362511,7.6011,163.68,163.64,3.12422652]
[1762550362708,2.1,163.68,163.64,3.12422652]
[1762550363015,4.44436785,163.67,163.64,3.12422652]
[1762550363220,4.44436785,163.66,163.64,3.12422652]
[1762550363412,2.1,163.68,163.64,3.12422652]
[1762550363712,4.44381437,163.67,163.64,3.12422652]
[1762550364016,2.1,163.68,163.64,3.12422652]
[1762550364214,4.44363955,163.67,163.64,3.12422652]
[1762550364412,7.6011,163.68,163.64,0.04422652]
[1762550364613,4.44343315,163.67,163.64,0.04422652]
[1762550364815,4.44343315,163.66,163.64,0.04422652]
[1762550365016,7.6011,163.68,163.64,0.04422652]
[1762550365217,12.04493315,163.67,163.64,0.04422652]
[1762550365418,4.44343315,163.66,163.64,0.04422652]
[1762550365617,2.1,163.67,163.64,0.04422652]
[1762550365819,4.44329671,163.66,163.64,0.04422652]
[1762550366019,4.44329671,163.65,163.64,0.04422652]
[1762550367219,6.54329671,163.65,163.64,0.04422652]
[1762550376322,8.695648,163.65,163.64,0.04422652]
[1762550378721,6.54329671,163.65,163.64,0.04422652]
[1762550378917,8.695648,163.65,163.64,0.04422652]
[1762550379123,6.54329671,163.65,163.64,0.04422652]
[1762550379323,8.695648,163.65,163.64,0.04422652]
[1762550379824,2.09,163.62,163.58,3.51]
[1762550380025,2.09,163.6,163.58,3.51]
[1762550380617,2.15235129,163.63,163.59,2.87]
[1762550380815,2.15235129,163.63,163.59,2.91051724]
[1762550380816,4.43127269,163.62,163.59,2.91051724]
[1762550381015,0.04126524,163.63,163.59,2.91051724]
[1762550381224,4.43081783,163.62,163.59,2.91051724]
[1762550381426,0.04126524,163.63,163.59,2.91051724]
[1762550383624,0.04126524,163.63,163.6,3.12]
[1762550384723,2.92,163.6,163.43,2.15235129]
[1762550385024,5.07235129,163.54,163.44,1.22]
[1762550385218,2.15235129,163.52,163.44,5.06]
[1762550385422,2.92,163.49,163.45,1.22]
[1762550385730,9.27214535,163.48,163.46,1.22]
[1762550385923,4.77173959,163.47,163.46,1.22]
[1762550386131,0.04650478,163.49,163.45,0.04452657]
[1762550386433,5.07235129,163.53,163.45,0.04452657]
[1762550386434,5.506,163.53,163.45,0.04452657]
[1762550386631,4.709557,163.52,163.46,3.12]
[1762550386929,4.709557,163.51,163.46,3.12]
[1762550387129,8.62766239,163.56,163.46,3.12]
[1762550387328,0.04466046,163.53,163.49,0.04061817]
[1762550387529,10.21364088,163.52,163.49,0.04061817]
[1762550387831,5.5065,163.52,163.49,0.04061817]
[1762550388030,4.70718342,163.51,163.49,0.04061817]
[1762550388329,2.96466046,163.53,163.49,0.04061817]
[1762550388530,4.70467383,163.52,163.49,0.04061817]
[1762550388724,2.92,163.5,163.49,0.04061817]
[1762550389420,7.62248744,163.5,163.49,0.04061817]
[1762550394432,2.92,163.5,163.49,0.04061817]
[1762550394632,7.60983853,163.5,163.49,0.04061817]
[1762550398435,12.33460234,163.5,163.49,0.04061817]
[1762550401543,2.92,163.47,163.43,4.39]
[1762550401838,7.64476381,163.46,163.43,4.39]
[1762550402039,8.4285,163.46,163.43,4.39]
[1762550402239,2.86,163.5,163.44,2.94]
[1762550402437,7.61920392,163.49,163.45,2.98140402]
[1762550402630,7.57939693,163.48,163.45,0.04140402]
[1762550402935,2.86,163.48,163.45,0.04140402]
[1762550403129,2.86,163.46,163.45,0.04140402]
[1762550403325,10.22752082,163.47,163.45,0.04140402]
[1762550403326,5.5081,163.47,163.45,0.04140402]
[1762550403529,2.89980699,163.49,163.45,0.04140402]
[1762550403734,7.57844191,163.48,163.45,0.04140402]
[1762550403935,4.71844191,163.47,163.45,0.04140402]
[1762550404133,8.3678,163.48,163.45,0.04140402]
[1762550404334,7.57778581,163.47,163.45,0.04140402]
[1762550404534,8.3681,163.47,163.45,0.04140402]
[1762550405744,2.86,163.47,163.45,0.04140402]
[1762550406341,2.86,163.48,163.45,0.04140402]
[1762550407039,0.03980699,163.49,163.45,2.98140402]
[1762550407244,2.89980699,163.49,163.45,2.98140402]
[1762550408339,4.71588324,163.48,163.45,2.98140402]
[1762550408543,2.89980699,163.49,163.45,2.98140402]
[1762550409244,4.71751145,163.48,163.45,2.98140402]
[1762550409547,2.86,163.48,163.45,0.04140402]
[1762550409748,7.57786838,163.47,163.45,0.04140402]
[1762550409948,2.86,163.47,163.45,0.04140402]
[1762550411345,4.71950233,163.46,163.45,0.04140402]
[1762550411546,2.86,163.47,163.45,0.04140402]
[1762550412343,2.89980699,163.49,163.45,2.98140402]
[1762550412544,0.03980699,163.49,163.45,2.98140402]
[1762550413248,0.03980699,163.49,163.46,2.94]
[1762550416348,4.87583505,163.48,163.46,2.94]
[1762550416647,0.03980699,163.49,163.47,2.94]
[1762550416849,7.61021652,163.57,163.47,2.94]
[1762550416850,8.56766239,163.57,163.47,2.94]
[1762550417046,9.67199795,163.56,163.5,2.94]
[1762550417255,9.67199795,163.55,163.5,2.94]
[1762550417548,9.67199795,163.54,163.5,2.94]
[1762550417746,4.87490755,163.53,163.5,2.9858594]
[1762550417952,4.87490755,163.52,163.5,2.9858594]
[1762550418142,0.04640947,163.54,163.5,2.9858594]
[1762550418336,4.87659447,163.53,163.5,2.9858594]
[1762550418542,4.87659447,163.52,163.5,2.9858594]
[1762550418738,0.04640947,163.54,163.5,2.9858594]
[1762550418942,4.86449313,163.53,163.51,2.94]
[1762550419150,4.86449313,163.52,163.51,2.94]
[1762550419845,0.04640947,163.54,163.51,2.94]
[1762550420155,4.86582115,163.53,163.51,2.94]
[1762550420452,0.04640947,163.54,163.51,2.94]
[1762550420642,4.8672165,163.53,163.51,2.94]
[1762550420842,0.04640947,163.54,163.51,2.94]
[1762550421243,4.86738731,163.53,163.51,2.94]
[1762550421444,0.04640947,163.54,163.51,8.4465]
[1762550421645,4.86847863,163.53,163.52,2.94]
[1762550422255,4.86847863,163.53,163.52,64.78]
[1762550423458,4.86847863,163.53,163.52,61.84]
[1762550423756,4.86847863,163.53,163.52,64.78]
[1762550425350,0.04640947,163.54,163.53,2.94]
[1762550425555,2.86,163.6,163.53,2.94]
[1762550425757,4.80921294,163.59,163.53,2.94]
[1762550425948,4.80921294,163.58,163.53,2.94]
[1762550426149,4.80921294,163.57,163.53,2.94]
[1762550426349,8.3638,163.6,163.53,2.94]
[1762550426543,7.67093393,163.59,163.55,2.94]
[1762550426754,4.81093393,163.58,163.55,2.94]
[1762550426954,4.81093393,163.57,163.55,2.94]
[1762550427150,2.86,163.59,163.55,2.94]
[1762550427452,4.81331874,163.58,163.55,2.94]
[1762550427659,4.81331874,163.57,163.55,2.94]
[1762550427847,2.86,163.59,163.55,2.94]
[1762550428047,4.81331786,163.58,163.55,2.94]
[1762550428255,4.81331786,163.57,163.55,2.94]
[1762550428455,2.86,163.59,163.55,2.94]
[1762550428655,4.81555097,163.58,163.55,2.94]
[1762550428861,2.86,163.59,163.55,2.94]
[1762550429256,4.81756545,163.58,163.55,2.94]
[1762550429457,2.86,163.59,163.55,2.94]
[1762550429756,4.81758431,163.58,163.55,2.94]
[1762550429946,2.86,163.59,163.55,2.94]
[1762550430152,4.81787663,163.58,163.55,2.94]
[1762550430359,4.81787663,163.57,163.55,2.94]
[1762550430655,2.86,163.59,163.55,2.94]
[1762550430859,4.81639437,163.58,163.55,2.94]
[1762550431050,4.81639437,163.57,163.55,2.94]
[1762550431359,2.86,163.59,163.55,2.94]
[1762550431563,4.81513194,163.58,163.55,2.94]
[1762550431857,2.86,163.61,163.55,2.94]
[1762550432059,7.67486841,163.6,163.56,2.98473394]
[1762550432260,4.81486841,163.59,163.56,2.98473394]
[1762550432557,2.86,163.6,163.56,2.98473394]
[1762550432761,4.81320873,163.59,163.56,2.98473394]
[1762550432964,2.86,163.6,163.56,2.98473394]
[1762550433163,4.81320873,163.59,163.56,2.98473394]
[1762550433458,2.86,163.6,163.56,2.98473394]
[1762550433660,4.81165691,163.59,163.56,2.98473394]
[1762550433862,2.86,163.6,163.56,2.98473394]
[1762550434061,4.81165691,163.59,163.56,2.98473394]
[1762550434257,2.86,163.6,163.56,2.98473394]
[1762550434454,4.81022481,163.59,163.56,2.98473394]
[1762550434658,2.86,163.6,163.56,2.98473394]
[1762550434856,4.81022481,163.59,163.56,2.98473394]
[1762550435061,2.88,163.63,163.56,2.98473394]
[1762550435357,4.80976078,163.62,163.56,2.98473394]
[1762550435557,7.68976078,163.61,163.57,3.14]
[1762550435759,2.88,163.61,163.57,3.14]
[1762550437064,8.3834,163.61,163.57,3.14]
[1762550438350,2.88,163.59,163.56,0.04473394]
[1762550438550,2.88,163.59,163.56,0.04376377]
[1762550439359,8.384,163.59,163.56,0.04376377]
[1762550439760,2.88,163.58,163.57,61.62]
[1762550440067,4.65968136,163.58,163.57,61.62]
[1762550440364,4.65964545,163.58,163.57,61.62]
[1762550440558,7.53964545,163.58,163.57,61.62]
[1762550440756,2.93,163.62,163.57,64.5]
[1762550440956,12.39512191,163.61,163.58,2.88]
[1762550441156,9.46463955,163.6,163.58,0.03887262]
[1762550441368,2.93,163.61,163.58,0.03887262]
[1762550441663,9.46408945,163.6,163.58,0.03887262]
[1762550441966,2.93,163.61,163.58,0.03887262]
[1762550442167,9.46399854,163.6,163.58,0.03887262]
[1762550442366,2.93,163.61,163.58,0.03887262]
[1762550442670,4.6590236,163.6,163.58,0.03887262]
[1762550442967,2.93,163.61,163.58,0.03887262]
[1762550443170,4.65914819,163.6,163.58,0.03887262]
[1762550443366,2.93,163.61,163.58,0.03887262]
[1762550445068,264.27943931,163.66,163.58,2.91887262]
[1762550445069,8.4324,163.64,163.58,2.91887262]
[1762550445270,2.93,163.62,163.58,2.91887262]
[1762550446162,2.93,163.62,163.58,0.03887262]
[1762550446970,8.4331,163.62,163.58,0.03887262]
[1762550447169,2.93,163.61,163.58,0.03887262]
[1762550447572,2.93,163.61,163.58,2.91887262]
[1762550449081,8.4334,163.61,163.58,2.91887262]
[1762550449784,8.4334,163.61,163.59,61.6]
[1762550450483,2.93,163.64,163.6,2.88]
[1762550450781,2.93,163.62,163.6,0.04578662]
[1762550451985,8.433,163.62,163.6,0.04578662]
[1762550452187,2.93,163.61,163.6,0.04578662]
[1762550452683,5.503,163.62,163.6,0.04578662]
[1762550452885,8.433,163.62,163.6,0.04578662]
[1762550453084,2.93,163.61,163.6,0.04578662]
[1762550453277,12.1788183,163.61,163.6,0.04578662]
[1762550453478,2.93,163.61,163.6,0.04578662]
[1762550453787,12.1788183,163.61,163.6,0.04578662]
[1762550455386,12.1788183,163.61,163.6,61.64578662]
[1762550455586,12.1788183,163.61,163.6,0.04578662]
[1762550455785,12.1788183,163.61,163.6,61.64578662]
[1762550458592,17.85542532,163.61,163.6,61.64578662]
[1762550460893,8.4343,163.58,163.57,3.6]
[1762550461081,9.2488183,163.58,163.57,3.6]
[1762550461285,9.2488183,163.58,163.57,6.48]
[1762550461892,12.1788183,163.58,163.57,3.6]
[1762550462801,17.88385226,163.58,163.57,3.6]
[1762550463797,12.1788183,163.58,163.57,3.6]
[1762550465798,9.2488183,163.58,163.57,3.6]
[1762550466106,9.2488183,163.58,163.57,6.69]
[1762550466698,9.2488183,163.58,163.57,3.6]
[1762550468702,12.1688183,163.58,163.57,3.6]
[1762550470101,17.87385226,163.58,163.57,3.6]
[1762550470805,9.2488183,163.58,163.57,6.69]
[1762550471807,9.2488183,163.58,163.57,3.09]
[1762550472600,9.2488183,163.58,163.57,6.45882569]
[1762550472804,5.70503396,163.63,163.59,3.09]
[1762550473006,9.09181842,163.62,163.61,3.09]
[1762550474310,9.09181842,163.62,163.61,5.24115541]
[1762550477704,9.09181842,163.62,163.61,2.15115541]
[1762550479012,9.09181842,163.62,163.61,5.24115541]
[1762550479401,9.09181842,163.62,163.61,2.15115541]
[1762550482010,9.09181842,163.62,163.6,71.12045979]
[1762550482210,8.62503396,163.64,163.6,71.12045979]
[1762550482211,4.41656084,163.61,163.6,71.12045979]
[1762550482612,7.33656084,163.61,163.6,4.27930438]
[1762550482806,13.0415948,163.61,163.6,4.27930438]
[1762550483006,7.33656084,163.61,163.6,4.27930438]
[1762550483515,13.0415948,163.61,163.6,4.27930438]
[1762550484714,8.4236,163.6,163.59,5.31]
[1762550484911,23.20287765,163.6,163.59,4.71989141]
[1762550485111,2.92,163.59,163.56,61.58]
[1762550485307,2.92,163.57,163.56,61.58]
[1762550485506,11.98725942,163.57,163.56,61.58]
[1762550486521,2.92,163.56,163.55,0.03992666]
[1762550486820,11.98725942,163.56,163.55,61.61992666]
[1762550487915,9.06725942,163.56,163.55,61.61992666]
[1762550488316,11.98725942,163.56,163.55,61.61992666]
[1762550489611,9.06725942,163.56,163.55,61.61992666]
[1762550489819,9.06725942,163.56,163.55,64.70992666]
[1762550490020,0.03914618,163.58,163.55,64.70992666]
[1762550490222,9.01931505,163.57,163.55,64.70992666]
[1762550490513,2.95914618,163.58,163.55,64.70992666]
[1762550490715,9.01916611,163.57,163.56,5.24115541]
[1762550491923,9.01923216,163.57,163.56,5.24115541]
[1762550492222,4.64874852,163.57,163.56,5.24115541]
[1762550492524,0.03914618,163.58,163.57,2.95]
[1762550493318,5.70967124,163.63,163.59,2.95]
[1762550493520,9.01724453,163.62,163.61,2.15115541]
[1762550494528,9.01724453,163.62,163.61,5.10115541]
[1762550497218,9.0156947,163.62,163.61,5.10115541]
[1762550497423,9.0154512,163.62,163.61,5.10115541]
[1762550498323,4.64786946,163.62,163.61,5.10115541]
[1762550498721,8.62967124,163.66,163.62,2.95]
[1762550499020,11.93208741,163.65,163.64,2.15115541]
[1762550499421,9.01208741,163.65,163.64,2.15115541]
[1762550500123,9.01208741,163.65,163.64,5.10115541]
[1762550500321,11.93208741,163.65,163.64,2.15115541]
[1762550500728,2.92,163.64,163.63,0.04097793]
[1762550501021,11.93208741,163.64,163.63,0.04097793]
[1762550501422,9.01208741,163.64,163.63,2.19213334]
[1762550502226,11.93208741,163.64,163.63,0.04097793]
[1762550504127,9.01208741,163.64,163.63,0.04097793]
[1762550505023,9.01208741,163.64,163.63,3.18097793]
[1762550505425,4.6453679,163.64,163.63,3.18097793]
[1762550506228,2.92,163.67,163.63,3.18097793]
[1762550506527,9.04617872,163.66,163.63,3.18097793]
[1762550506830,9.04617872,163.65,163.63,3.18097793]
[1762550507128,2.92,163.66,163.63,3.18097793]
[1762550507426,9.04568685,163.65,163.63,3.18097793]
[1762550507626,8.4217,163.66,163.63,3.18097793]
[1762550507826,2.92,163.64,163.63,0.04097793]
[1762550508026,11.96595803,163.64,163.63,0.04097793]
[1762550509229,9.04595803,163.64,163.63,0.04097793]
[1762550511623,11.96595803,163.64,163.63,0.04097793]
[1762550513329,9.04595803,163.64,163.63,0.04097793]
[1762550514527,2.92,163.66,163.63,3.18097793]
[1762550514831,9.04659245,163.65,163.63,3.18097793]
[1762550515032,2.92,163.66,163.63,3.18097793]
[1762550515329,9.04659245,163.65,163.63,3.18097793]
[1762550515526,2.92,163.66,163.63,3.18097793]
[1762550515728,9.04703531,163.65,163.63,3.18097793]
[1762550515922,2.92,163.66,163.63,3.18097793]
[1762550516127,9.04703531,163.65,163.63,3.18097793]
[1762550516325,2.92,163.66,163.63,3.18097793]
[1762550516530,9.04692168,163.65,163.63,3.18097793]
[1762550516730,2.92,163.66,163.63,3.18097793]
[1762550516931,9.04692168,163.65,163.63,3.18097793]
[1762550517227,2.92,163.66,163.63,3.18097793]
[1762550517434,9.04658226,163.65,163.63,3.18097793]
[1762550517734,2.92,163.66,163.63,3.18097793]
[1762550517931,9.04658226,163.65,163.63,3.18097793]
[1762550518131,2.92,163.66,163.63,3.18097793]
[1762550518331,9.04577552,163.65,163.63,3.18097793]
[1762550518632,2.92,163.66,163.63,3.18097793]
[1762550518933,9.04577552,163.65,163.63,3.18097793]
[1762550519131,2.92,163.66,163.63,8.68347793]
[1762550519333,4.65719388,163.65,163.63,8.68347793]
[1762550519638,2.92,163.66,163.63,8.68347793]
[1762550519935,9.04500749,163.65,163.63,8.68347793]